bitfinex-derivatives/quotes_BTCF0:USTF0_20250710
["timestamp","ask_amount","ask_price","bid_price","bid_amount"]
[1752161619676,0.53439844,111350.0,111340.0,0.29702505]
[1752161620176,0.58979844,111350.0,111340.0,0.29702505]
[1752161622878,0.66623505,111350.0,111340.0,0.29702505]
[1752161623376,0.28508018,111350.0,111340.0,0.29702505]
[1752161623577,0.66623505,111350.0,111340.0,0.29702505]
[1752161623979,0.64323505,111350.0,111340.0,0.29702505]
[1752161624170,0.57640747,111350.0,111340.0,0.29702505]
[1752161624370,0.22977201,111350.0,111340.0,0.29702505]
[1752161624681,0.22977201,111350.0,111340.0,0.29726195]
[1752161628482,0.61092688,111350.0,111340.0,0.29726195]
[1752161628977,0.63392688,111350.0,111340.0,0.29726195]
[1752161629380,0.66542688,111350.0,111340.0,0.29726195]
[1752161629984,0.66542688,111350.0,111340.0,0.05281325]
[1752161630172,0.69752688,111350.0,111340.0,0.03760325]
[1752161630376,0.69752688,111350.0,111340.0,0.01403325]
[1752161630784,0.2028848,111330.0,111320.0,0.06067698]
[1752161631085,0.58403967,111330.0,111320.0,0.24025798]
[1752161631281,0.64623967,111330.0,111320.0,1.74025798]
[1752161631482,0.64623967,111330.0,111320.0,1.56067698]
[1752161632079,0.64623967,111330.0,111320.0,1.74425798]
[1752161632284,0.64623967,111330.0,111320.0,1.56467698]
[1752161632680,0.64623967,111330.0,111320.0,1.74725798]
[1752161633881,1.22336967,111330.0,111320.0,1.74725798]
[1752161634075,0.8422148,111330.0,111320.0,1.81015798]
[1752161634280,0.60656967,111330.0,111320.0,1.81015798]
[1752161634982,0.57506967,111330.0,111320.0,1.81015798]
[1752161635179,0.1795648,111330.0,111320.0,1.81015798]
[1752161635579,0.3285825,111340.0,111330.0,0.1957748]
[1752161635779,0.74428802,111340.0,111330.0,0.2843548]
[1752161635985,0.75325802,111340.0,111330.0,0.2843548]
[1752161636289,0.78375802,111340.0,111330.0,0.2843548]
[1752161636488,0.81585802,111340.0,111330.0,0.04039]
[1752161636684,0.81585802,111340.0,111330.0,0.2219548]
[1752161636890,0.77478802,111340.0,111330.0,0.2864548]
[1752161637090,0.77478802,111340.0,111330.0,0.2884548]
[1752161637490,0.77478802,111340.0,111330.0,0.2844548]
[1752161640196,0.74428802,111340.0,111330.0,0.2844548]
[1752161640587,0.30389245,111340.0,111330.0,0.9012548]
[1752161640788,0.2836669,111350.0,111340.0,0.1957587]
[1752161640989,0.31819341,111350.0,111340.0,0.2814387]
[1752161642195,0.30384341,111350.0,111340.0,0.2814387]
[1752161642593,0.30484341,111350.0,111340.0,0.2814387]
[1752161642794,0.30484341,111350.0,111340.0,0.2954722]
[1752161642995,0.21507301,111350.0,111340.0,0.2954722]
[1752161643194,0.1805465,111350.0,111340.0,0.2954722]
[1752161643387,0.1815465,111350.0,111340.0,0.2954722]
[1752161643794,0.002,111350.0,111340.0,0.2954722]
[1752161644100,0.1815326,111350.0,111340.0,0.2954722]
[1752161644299,0.001,111350.0,111340.0,0.2954722]
[1752161644600,0.1805326,111350.0,111340.0,0.2954722]
[1752161645404,0.001,111350.0,111340.0,0.2954722]
[1752161647396,0.1795171,111360.0,111340.0,0.1159235]
[1752161647596,0.1795171,111360.0,111350.0,0.8761026]
[1752161647802,0.1795171,111360.0,111350.0,0.9132961]
[1752161648799,0.1938671,111360.0,111350.0,0.9132961]
[1752161650304,0.1938671,111360.0,111350.0,0.91329419]
[1752161652909,0.49871065,111360.0,111350.0,0.91329419]
[1752161654807,0.69694045,111370.0,111360.0,0.2185064]
[1752161655007,0.73131472,111370.0,111360.0,0.26443799]
[1752161655810,0.73131472,111370.0,111360.0,0.27339836]
[1752161656010,0.73231472,111370.0,111360.0,0.27339836]
[1752161656810,0.73231472,111370.0,111360.0,0.26443799]
[1752161657008,0.74128472,111370.0,111360.0,0.23253799]
[1752161657202,0.74228472,111370.0,111360.0,0.23253799]
[1752161658202,0.70791045,111370.0,111360.0,0.23253799]
[1752161659506,0.70791045,111370.0,111360.0,0.05302159]
[1752161660104,0.74227176,111370.0,111360.0,0.05302159]
[1752161663309,0.1938825,111350.0,111340.0,0.25910882]
[1752161663512,0.50769605,111350.0,111340.0,0.21423172]
[1752161663708,0.57059605,111350.0,111340.0,0.21423172]
[1752161663907,0.57059605,111350.0,111340.0,0.23739172]
[1752161664310,0.60497777,111350.0,111340.0,0.23739172]
[1752161664512,0.60497777,111350.0,111340.0,0.23939172]
[1752161664712,0.57059605,111350.0,111340.0,0.23939172]
[1752161665114,0.60498209,111350.0,111340.0,0.24139172]
[1752161666414,0.30013854,111350.0,111340.0,0.24139172]
[1752161666610,0.60498209,111350.0,111340.0,0.24139172]
[1752161668214,0.60496459,111350.0,111340.0,0.24139172]
[1752161669408,0.60496459,111350.0,111340.0,0.23939172]
[1752161669610,0.60696459,111350.0,111340.0,0.23739172]
[1752161669809,0.60696459,111350.0,111340.0,0.05784312]
[1752161670115,0.2028347,111330.0,111320.0,1.76790978]
[1752161670316,0.8125218,111330.0,111320.0,2.38458978]
[1752161670517,0.8761218,111330.0,111320.0,2.38458978]
[1752161670907,0.64776835,111330.0,111320.0,2.38458978]
[1752161671811,0.1938847,111330.0,111320.0,2.38458978]
[1752161672120,0.1795647,111330.0,111320.0,2.45088978]
[1752161672308,0.3601513,111340.0,111330.0,0.1953948]
[1752161672508,0.3285513,111340.0,111330.0,0.2828548]
[1752161672908,0.36297759,111340.0,111330.0,0.2828548]
[1752161673114,0.3285513,111340.0,111330.0,0.2828548]
[1752161673510,0.70988495,111340.0,111330.0,0.2828548]
[1752161675315,0.3285513,111340.0,111330.0,0.2828548]
[1752161677218,0.3285513,111340.0,111330.0,0.29688972]
[1752161678414,0.70988495,111340.0,111330.0,0.29688972]
[1752161678615,0.3285513,111340.0,111330.0,0.29688972]
[1752161679615,0.3285513,111340.0,111330.0,0.2828548]
[1752161679919,0.3285513,111340.0,111330.0,0.29688969]
[1752161680709,0.70988495,111340.0,111330.0,0.29688969]
[1752161682920,0.3152335,111350.0,111340.0,0.1946686]
[1752161683114,0.31814194,111350.0,111340.0,0.29400349]
[1752161683424,0.22836094,111350.0,111340.0,0.91120349]
[1752161683918,0.1938525,111350.0,111340.0,0.91120349]
[1752161684221,0.1948525,111350.0,111340.0,0.91120349]
[1752161685215,0.001,111350.0,111340.0,0.91120349]
[1752161685818,0.002,111350.0,111340.0,0.91120153]
[1752161686311,0.001,111350.0,111340.0,0.91120153]
[1752161686514,0.001,111350.0,111340.0,0.91320153]
[1752161689423,0.3284922,111360.0,111350.0,0.1946525]
[1752161689626,0.36299227,111360.0,111350.0,0.29438543]
[1752161689923,0.31810967,111360.0,111350.0,0.29438543]
[1752161690117,0.69944332,111360.0,111350.0,0.29438543]
[1752161690826,0.62296259,111360.0,111350.0,0.29438543]
[1752161691624,0.62296259,111360.0,111350.0,0.3031374]
[1752161693126,0.62296259,111360.0,111350.0,0.28910447]
[1752161693425,0.62296259,111360.0,111350.0,0.30313681]
[1752161694828,0.58846252,111360.0,111350.0,0.30313681]
[1752161696122,0.59741252,111360.0,111350.0,0.23138484]
[1752161696322,1.0017384,111360.0,111350.0,0.05185234]
[1752161696522,1.0017384,111360.0,111350.0,0.01403234]
[1752161697631,1.0017384,111360.0,111350.0,0.03673234]
[1752161698635,1.0017384,111360.0,111350.0,0.21626484]
[1752161699242,1.0017384,111360.0,111350.0,0.03673234]
[1752161700542,1.0017384,111360.0,111350.0,0.01403405]
[1752161704339,0.1938847,111330.0,111320.0,1.87384718]
[1752161704540,0.81254054,111330.0,111320.0,1.78405878]
[1752161704741,0.87574054,111330.0,111320.0,0.28405878]
[1752161704937,0.87574054,111330.0,111320.0,0.05810698]
[1752161705645,0.87574054,111330.0,111320.0,0.06410698]
[1752161706035,0.87574054,111330.0,111320.0,0.04561654]
[1752161706743,0.87574054,111330.0,111320.0,0.03049654]
[1752161706945,0.87574054,111330.0,111320.0,0.02849654]
[1752161707635,0.87574054,111330.0,111320.0,0.02449654]
[1752161708838,0.87574054,111330.0,111310.0,1.90391116]
[1752161708839,0.2028509,111320.0,111310.0,1.5261267]
[1752161709046,1.18732382,111320.0,111310.0,1.5261267]
[1752161709932,1.18732382,111320.0,111310.0,1.5281267]
[1752161712744,1.22194511,111320.0,111310.0,0.0452467]
[1752161713141,1.18732382,111320.0,111310.0,1.5452467]
[1752161713548,1.18732382,111320.0,111310.0,0.0452467]
[1752161713844,1.22193507,111320.0,111310.0,0.0301267]
[1752161715035,1.40160707,111320.0,111310.0,0.0057967]
[1752161715648,1.22193507,111320.0,111310.0,0.0301267]
[1752161716047,1.22205507,111320.0,111310.0,0.0453467]
[1752161716350,1.22205507,111320.0,111310.0,0.05931415]
[1752161716949,1.22205507,111320.0,111310.0,0.05931425]
[1752161718748,1.22205507,111320.0,111310.0,0.0301267]
[1752161718943,1.22205507,111320.0,111310.0,0.0057967]
[1752161719448,1.52690799,111320.0,111310.0,0.0057967]
[1752161719643,1.22205507,111320.0,111310.0,0.0057967]
[1752161724145,1.22205507,111320.0,111310.0,0.01979888]
[1752161725144,1.22205507,111320.0,111310.0,0.0057967]
[1752161725356,1.22205507,111320.0,111310.0,0.01980509]
[1752161728549,1.22205507,111320.0,111310.0,0.01981259]
[1752161729754,1.52690799,111320.0,111310.0,0.01981259]
[1752161730254,1.22205507,111320.0,111310.0,0.01981259]
[1752161731350,1.52690799,111320.0,111310.0,0.01981259]
[1752161732154,0.91720215,111320.0,111310.0,0.01981259]
[1752161732450,0.85482215,111320.0,111310.0,0.05936259]
[1752161732657,1.15967507,111320.0,111310.0,0.30465959]
[1752161732843,0.22851215,111320.0,111310.0,0.30465959]
[1752161733044,0.21419215,111320.0,111310.0,0.60951251]
[1752161733252,0.51904507,111320.0,111310.0,0.30465959]
[1752161733554,0.53336507,111320.0,111310.0,0.30465959]
[1752161734459,0.53336507,111320.0,111310.0,0.30457996]
[1752161735155,0.51904507,111320.0,111310.0,0.30457996]
[1752161735452,0.12942903,111340.0,111330.0,0.1795647]
[1752161735453,0.08049684,111340.0,111330.0,0.1795647]
[1752161735654,0.26004544,111340.0,111330.0,0.23305096]
[1752161735855,0.58057836,111340.0,111330.0,0.29485096]
[1752161736355,0.50008152,111340.0,111330.0,0.29485096]
[1752161736650,0.52489152,111340.0,111330.0,0.29485096]
[1752161736856,0.53401645,111340.0,111330.0,0.29485096]
[1752161737155,0.52589152,111340.0,111330.0,0.29485096]
[1752161739150,0.52589152,111340.0,111330.0,0.11528626]
[1752161739452,1.44926444,111340.0,111330.0,0.07573626]
[1752161739848,1.51076444,111340.0,111330.0,0.07573626]
[1752161740454,1.20591152,111340.0,111330.0,0.04473626]
[1752161740749,1.51076444,111340.0,111330.0,0.01393626]
[1752161740957,1.20591152,111340.0,111330.0,0.01393626]
[1752161741258,1.17521152,111340.0,111330.0,0.23236096]
[1752161741448,1.17521152,111340.0,111330.0,0.29486096]
[1752161742047,0.52589152,111340.0,111330.0,0.29486096]
[1752161742248,1.14441152,111340.0,111330.0,0.29486096]
[1752161742449,1.14441152,111340.0,111330.0,0.2809247]
[1752161743057,1.14441152,111340.0,111330.0,0.10136]
[1752161743447,1.14441152,111340.0,111330.0,0.0625]
[1752161743448,1.20791152,111340.0,111330.0,0.0625]
[1752161743958,1.20791152,111340.0,111330.0,0.2809247]
[1752161746551,1.17651152,111340.0,111330.0,0.2809247]
[1752161747554,1.17651152,111340.0,111330.0,0.29473033]
[1752161749150,1.14441152,111340.0,111330.0,0.29472855]
[1752161749646,1.14441152,111340.0,111330.0,0.2809247]
[1752161750058,1.17882941,111340.0,111330.0,0.2809247]
[1752161753359,0.56030941,111340.0,111330.0,0.2809247]
[1752161753558,0.25545649,111340.0,111330.0,0.58577762]
[1752161753757,1.14425152,111340.0,111330.0,0.2809247]
[1752161753961,1.17864681,111340.0,111330.0,0.2809247]
[1752161754161,1.14425152,111340.0,111330.0,0.2809247]
[1752161754563,0.8393986,111340.0,111330.0,0.2809247]
[1752161754864,1.17864577,111340.0,111330.0,0.2809247]
[1752161755054,1.14425152,111340.0,111330.0,0.2809247]
[1752161755556,0.52589152,111340.0,111330.0,0.2809247]
[1752161757461,0.50208152,111340.0,111330.0,0.2809247]
[1752161758964,0.52682152,111340.0,111330.0,0.2809247]
[1752161759965,0.2219686,111340.0,111330.0,0.2809247]
[1752161760163,0.50208152,111340.0,111330.0,0.2809247]
[1752161760364,0.1972286,111340.0,111330.0,0.58577762]
[1752161760865,0.1972286,111340.0,111330.0,0.2809247]
[1752161761463,0.52682152,111340.0,111330.0,0.2809247]
[1752161763259,0.56120194,111340.0,111330.0,0.2809247]
[1752161763466,0.52682152,111340.0,111330.0,0.2809247]
[1752161763664,0.56120128,111340.0,111330.0,0.2809247]
[1752161765465,0.8660542,111340.0,111330.0,0.10136]
[1752161765662,0.2198948,111330.0,111320.0,0.07046]
[1752161765866,0.925915,111330.0,111320.0,0.03886]
[1752161766264,0.925915,111330.0,111320.0,0.2184409]
[1752161766466,0.62106208,111330.0,111320.0,0.2184409]
[1752161766660,0.62106208,111330.0,111320.0,0.2500409]
[1752161766860,0.62106208,111330.0,111320.0,0.2811409]
[1752161771663,0.58966208,111330.0,111320.0,0.2811409]
[1752161773465,0.58966208,111330.0,111320.0,0.2184409]
[1752161773665,1.23768208,111330.0,111320.0,0.2184409]
[1752161775376,0.2186709,111320.0,111310.0,0.1017567]
[1752161775566,0.58792382,111320.0,111310.0,0.2509537]
[1752161775767,0.62237581,111320.0,111310.0,0.0017967]
[1752161776370,0.62237581,111320.0,111310.0,0.0037967]
[1752161776875,0.62237581,111320.0,111310.0,0.0047967]
[1752161778075,0.62237581,111320.0,111310.0,0.1843937]
[1752161778276,0.62237581,111320.0,111310.0,0.2080537]
[1752161778476,0.62237581,111320.0,111310.0,0.2236537]
[1752161778772,0.93600289,111320.0,111310.0,0.2236537]
[1752161779073,1.24085581,111320.0,111310.0,0.2236537]
[1752161781770,1.24085581,111320.0,111310.0,0.23753722]
[1752161783679,1.24085581,111320.0,111310.0,0.2236537]
[1752161784279,1.24085581,111320.0,111310.0,0.0284567]
[1752161784479,1.24085581,111320.0,111310.0,0.0047967]
[1752161785385,1.24085581,111320.0,111310.0,0.1843937]
[1752161787376,0.55797581,111320.0,111310.0,0.2236537]
[1752161787572,0.25312289,111320.0,111310.0,0.2863537]
[1752161787979,0.01557,111320.0,111310.0,0.59120662]
[1752161789183,0.65820252,111330.0,111320.0,0.1951809]
[1752161789382,0.65820252,111330.0,111320.0,0.3000989]
[1752161789982,0.52352122,111330.0,111320.0,0.3000989]
[1752161790281,0.2186683,111330.0,111320.0,0.3000989]
[1752161790487,0.52352122,111330.0,111320.0,0.3000989]
[1752161790985,0.2186683,111330.0,111320.0,0.3000989]
[1752161791378,0.52352122,111330.0,111320.0,0.3000989]
[1752161795986,0.2186683,111330.0,111320.0,0.3000989]
[1752161796191,0.52352122,111330.0,111320.0,0.3000989]
[1752161796391,0.2186683,111330.0,111320.0,0.3000989]
[1752161797486,0.67720512,111340.0,111330.0,0.1951648]
[1752161797695,0.31696653,111340.0,111330.0,0.58755772]
[1752161797887,0.06996573,111340.0,111330.0,0.58755772]
[1752161798086,0.2151187,111340.0,111330.0,0.58755772]
[1752161798489,0.2151187,111340.0,111330.0,0.2827048]
[1752161798786,0.2181187,111340.0,111330.0,0.2827048]
[1752161798991,0.2181186,111340.0,111330.0,0.2827048]
[1752161799392,0.2151186,111340.0,111330.0,0.2847048]
[1752161799592,0.2151186,111340.0,111330.0,0.2857048]
[1752161799993,0.2151186,111340.0,111330.0,0.29952782]
[1752161800596,0.03557,111340.0,111330.0,0.29952782]
[1752161800894,0.03557,111340.0,111330.0,0.30870231]
[1752161801094,0.2151186,111340.0,111330.0,0.30870231]
[1752161801293,0.03557,111340.0,111330.0,0.30870231]
[1752161801692,0.03557,111340.0,111330.0,0.29487929]
[1752161802595,0.2151186,111340.0,111330.0,0.29487929]
[1752161803692,0.03557,111340.0,111330.0,0.29487929]
[1752161803885,0.02,111340.0,111330.0,0.59973221]
[1752161804595,0.03654,111340.0,111330.0,0.29487929]
[1752161805096,0.02,111340.0,111330.0,0.59973221]
[1752161806594,0.64583072,111360.0,111350.0,0.2186825]
[1752161806790,0.68010766,111360.0,111350.0,0.2186825]
[1752161806998,0.68010766,111360.0,111350.0,0.2798825]
[1752161807497,0.37525474,111360.0,111350.0,0.2798825]
[1752161807688,0.68010766,111360.0,111350.0,0.2798825]
[1752161807889,0.68110766,111360.0,111350.0,0.2798825]
[1752161809601,0.68110766,111360.0,111350.0,0.35126895]
[1752161810300,0.68110766,111360.0,111350.0,0.2798825]
[1752161810496,0.64683072,111360.0,111350.0,0.2798825]
[1752161810804,0.1063124,111350.0,111330.0,0.04372813]
[1752161810997,0.52349152,111340.0,111330.0,0.04015]
[1752161811199,0.58779152,111340.0,111330.0,0.001]
[1752161811598,0.2186548,111330.0,111320.0,0.057708]
[1752161811796,0.89256064,111330.0,111320.0,0.057708]
[1752161812002,0.89256064,111330.0,111320.0,0.018558]
[1752161812507,0.92682902,111330.0,111320.0,0.018558]
[1752161812900,0.31712318,111330.0,111320.0,0.1981389]
[1752161813107,0.6219761,111330.0,111320.0,0.2372889]
[1752161816301,0.6219761,111330.0,111320.0,0.2692889]
[1752161821917,0.6219761,111330.0,111320.0,0.28313423]
[1752161825920,0.58770772,111330.0,111320.0,0.28313423]
[1752161826914,0.58770772,111330.0,111320.0,0.31413423]
[1752161827110,0.55520772,111330.0,111320.0,0.31413423]
[1752161828216,0.05079294,111330.0,111320.0,0.61898715]
[1752161828410,0.01654,111330.0,111320.0,1.23746715]
[1752161828614,0.01654,111330.0,111320.0,0.93261423]
[1752161828615,0.1961048,111330.0,111320.0,0.93261423]
[1752161829423,0.01654,111330.0,111320.0,0.93261423]
[1752161830319,0.0635,111340.0,111330.0,0.1795648]
[1752161830630,0.0158,111340.0,111330.0,0.70436865]
[1752161831129,0.0158,111340.0,111330.0,0.39951573]
[1752161831331,0.1953486,111340.0,111330.0,0.39951573]
[1752161831520,0.52388152,111340.0,111330.0,0.35462603]
[1752161832434,0.52388152,111340.0,111330.0,0.35581565]
[1752161832729,0.52388152,111340.0,111330.0,0.35781565]
[1752161837532,0.2190286,111340.0,111330.0,0.35781565]
[1752161837732,0.0158,111340.0,111330.0,0.66266857]
[1752161838033,0.52388152,111340.0,111330.0,0.35781565]
[1752161843339,0.55598152,111340.0,111330.0,0.35781565]
[1752161844034,0.55598152,111340.0,111330.0,0.32601565]
[1752161844235,0.58858152,111340.0,111330.0,0.3258927]
[1752161844541,0.55598152,111340.0,111330.0,0.3258927]
[1752161844738,0.55598152,111340.0,111330.0,0.3559927]
[1752161849242,0.59021019,111340.0,111330.0,0.3559927]
[1752161849432,0.59021019,111340.0,111330.0,0.3884927]
[1752161849634,0.55598152,111340.0,111330.0,0.3884927]
[1752161849829,0.59021019,111340.0,111330.0,0.3884927]
[1752161850032,0.55598152,111340.0,111330.0,0.3884927]
[1752161850739,0.55598152,111340.0,111330.0,0.056552]
[1752161851042,0.62121101,111340.0,111330.0,0.2361168]
[1752161851434,0.59021101,111340.0,111330.0,0.2690168]
[1752161851630,0.59021101,111340.0,111330.0,0.3020168]
[1752161852845,0.59021101,111340.0,111330.0,0.3021398]
[1752161855742,0.59021101,111340.0,111330.0,0.2881048]
[1752161855948,0.59021101,111340.0,111330.0,0.30213979]
[1752161857542,0.59021101,111340.0,111330.0,0.23623979]
[1752161857748,0.62131101,111340.0,111330.0,0.23623979]
[1752161860454,0.62131101,111340.0,111330.0,0.26743979]
[1752161871555,0.62131101,111340.0,111330.0,0.2534048]
[1752161874357,0.92616393,111340.0,111330.0,0.003]
[1752161875556,0.62131101,111340.0,111330.0,0.1825648]
[1752161876661,0.31645809,111340.0,111330.0,0.1825648]
[1752161876859,0.62131101,111340.0,111330.0,0.1825648]
[1752161877060,0.62131101,111340.0,111330.0,0.2054648]
[1752161878563,0.62131101,111340.0,111330.0,0.21934547]
[1752161880365,0.31645809,111340.0,111330.0,0.23505547]
[1752161880566,0.87041809,111340.0,111330.0,0.23505547]
[1752161880766,0.25325809,111340.0,111330.0,0.29725547]
[1752161881065,0.55811101,111340.0,111330.0,0.29725547]
[1752161883566,0.25325809,111340.0,111330.0,0.29725547]
[1752161883867,0.55811101,111340.0,111330.0,0.29725547]
[1752161886266,0.25325809,111340.0,111330.0,0.60210839]
[1752161886567,0.25325809,111340.0,111330.0,0.29725547]
[1752161886869,0.55811101,111340.0,111330.0,0.29725547]
[1752161888166,0.55811101,111340.0,111330.0,1.53145547]
[1752161889668,0.55811101,111340.0,111330.0,1.5175748]
[1752161895373,0.53443101,111340.0,111330.0,1.5175748]
[1752161895774,0.55834101,111340.0,111330.0,1.5175748]
[1752161896274,0.53443101,111340.0,111330.0,1.5175748]
[1752161896866,0.03915,111350.0,111340.0,0.1949987]
[1752161897176,0.61328692,111360.0,111350.0,0.1949826]
[1752161897367,0.61328692,111360.0,111350.0,1.5165626]
[1752161897674,0.56840672,111360.0,111350.0,1.5165626]
[1752161898573,0.63280672,111360.0,111350.0,1.5165626]
[1752161899072,0.63380672,111360.0,111350.0,1.5165626]
[1752161899876,0.63580672,111360.0,111350.0,1.5165626]
[1752161900979,0.94065964,111360.0,111350.0,1.5165626]
[1752161902483,0.63580672,111360.0,111350.0,1.5165626]
[1752161902982,0.60420672,111360.0,111350.0,1.5165626]
[1752161903877,0.90905964,111360.0,111350.0,1.4532626]
[1752161904088,0.94075964,111360.0,111350.0,1.4532626]
[1752161904375,0.94075964,111360.0,111350.0,1.27373]
[1752161904581,0.1795326,111350.0,111340.0,1.6023477]
[1752161904784,0.58673552,111350.0,111340.0,1.5274613]
[1752161905286,0.58673552,111350.0,111340.0,1.4825769]
[1752161905583,0.58673552,111350.0,111340.0,1.4376933]
[1752161906585,0.2186987,111340.0,111330.0,0.8361652]
[1752161906783,0.58615162,111340.0,111330.0,0.8361652]
[1752161907783,0.58615162,111340.0,111330.0,0.8381652]
[1752161908885,0.62012843,111340.0,111330.0,0.8391652]
[1752161909490,0.31527551,111340.0,111330.0,0.8391652]
[1752161909688,0.62012843,111340.0,111330.0,0.8391652]
[1752161910488,0.31527551,111340.0,111330.0,0.8391652]
[1752161910691,0.62012843,111340.0,111330.0,0.8391652]
[1752161911591,0.31527551,111340.0,111330.0,0.8391652]
[1752161911891,0.62012843,111340.0,111330.0,0.8391652]
[1752161912592,0.31527551,111340.0,111330.0,0.8391652]
[1752161912893,0.62012843,111340.0,111330.0,0.8391652]
[1752161918496,0.62012843,111340.0,111330.0,0.8693652]
[1752161918694,0.62012843,111340.0,111330.0,0.2524452]
[1752161919097,0.31527551,111340.0,111330.0,0.8694052]
[1752161919291,0.62012843,111340.0,111330.0,0.8694052]
[1752161919491,0.62012843,111340.0,111330.0,0.8997052]
[1752161920991,0.58615162,111340.0,111330.0,0.8997052]
[1752161922398,0.55555162,111340.0,111330.0,0.8997052]
[1752161923405,0.3101349,111350.0,111340.0,0.1795487]
[1752161923604,0.31934988,111350.0,111340.0,0.2831587]
[1752161923811,0.03367498,111350.0,111340.0,0.58801162]
[1752161924207,1.31126582,111370.0,111360.0,0.1952864]
[1752161924505,0.2151687,111370.0,111360.0,0.52307932]
[1752161924708,0.2151687,111370.0,111360.0,0.58597932]
[1752161924898,0.2315287,111370.0,111360.0,0.2811264]
[1752161925102,0.53638162,111370.0,111360.0,0.2811264]
[1752161925297,0.56084162,111370.0,111360.0,0.2811264]
[1752161925511,0.2559887,111370.0,111360.0,0.2811264]
[1752161925710,0.56284162,111370.0,111360.0,0.2811264]
[1752161926110,0.56684162,111370.0,111360.0,0.2811264]
[1752161926711,0.56284162,111370.0,111360.0,0.29009071]
[1752161927413,0.56084162,111370.0,111360.0,0.29009071]
[1752161929511,0.56084162,111370.0,111360.0,0.2811264]
[1752161930613,0.59194162,111370.0,111360.0,0.2811264]
[1752161930909,0.55827322,111370.0,111360.0,0.2811264]
[1752161931816,0.55827322,111370.0,111360.0,0.29500754]
[1752161932315,0.55827322,111370.0,111360.0,0.05259114]
[1752161932506,1.54408779,111370.0,111360.0,0.05259114]
[1752161933217,1.54408779,111370.0,111360.0,0.01388114]
[1752161934017,1.23923487,111370.0,111360.0,0.23210764]
[1752161934417,1.23923487,111370.0,111360.0,0.26340764]
[1752161934717,1.23917693,111370.0,111360.0,0.26340764]
[1752161934917,1.23917693,111370.0,111360.0,0.2495265]
[1752161935121,1.23917693,111370.0,111360.0,0.26335746]
[1752161935616,1.23917693,111370.0,111360.0,0.26298568]
[1752161936518,1.23913693,111370.0,111360.0,0.23168393]
[1752161937314,0.62233693,111370.0,111360.0,0.23168393]
[1752161937516,1.23913693,111370.0,111360.0,0.23168393]
[1752161938416,1.23913693,111370.0,111360.0,0.03676921]
[1752161938721,1.23913693,111370.0,111360.0,0.01382921]
[1752161938916,0.2203365,111360.0,111350.0,0.02294]
[1752161939221,0.9265145,111360.0,111350.0,0.2024727]
[1752161940321,0.89294234,111360.0,111350.0,0.2202427]
[1752161940822,0.89294234,111360.0,111350.0,0.2212427]
[1752161942323,0.9265318,111360.0,111350.0,0.2212427]
[1752161943726,0.9265318,111360.0,111350.0,0.04171]
[1752161944118,0.9265318,111360.0,111350.0,0.2212427]
[1752161948331,1.5432918,111360.0,111350.0,0.2212427]
[1752161948531,1.5432918,111360.0,111350.0,0.04171]
[1752161948732,1.5432918,111360.0,111350.0,0.2212427]
[1752161949131,1.5432918,111360.0,111350.0,0.04171]
[1752161949334,1.5432918,111360.0,111350.0,0.2212426]
[1752161950536,1.5429918,111360.0,111350.0,0.2212426]
[1752161950838,1.5429918,111360.0,111350.0,0.04171]
[1752161951023,1.5429918,111360.0,111350.0,0.003]
[1752161954634,0.9262318,111360.0,111350.0,0.003]
[1752161954833,1.5429918,111360.0,111350.0,0.003]
[1752161955334,0.9262318,111360.0,111350.0,0.003]
[1752161955545,1.5429918,111360.0,111350.0,0.003]
[1752161957740,0.1956088,111340.0,111330.0,0.32837504]
[1752161958039,1.4804541,111340.0,111330.0,0.01911384]
[1752161958345,1.23820118,111340.0,111330.0,0.01911384]
[1752161958945,1.23820118,111340.0,111330.0,0.009]
[1752161960143,1.5430541,111340.0,111330.0,0.009]
[1752161960649,1.5430541,111340.0,111330.0,0.005]
[1752161960839,1.5430541,111340.0,111330.0,0.002]
[1752161961842,0.220431,111320.0,111310.0,0.0017967]
[1752161962146,1.17545661,111320.0,111310.0,0.0258367]
[1752161962352,1.20595661,111320.0,111310.0,0.0565367]
[1752161962540,1.21497026,111320.0,111310.0,0.1043267]
[1752161962735,1.20595661,111320.0,111310.0,0.1043267]
[1752161963047,1.20595661,111320.0,111310.0,0.09437423]
[1752161963347,0.58919661,111320.0,111310.0,0.09437423]
[1752161963547,1.20607661,111320.0,111310.0,0.09437423]
[1752161963947,0.58919661,111320.0,111310.0,0.09537423]
[1752161964139,1.20603661,111320.0,111310.0,0.09537423]
[1752161964339,0.58919661,111320.0,111310.0,0.09537423]
[1752161964539,1.20599661,111320.0,111310.0,0.27597143]
[1752161964848,1.20599661,111320.0,111310.0,0.09637423]
[1752161965244,1.20599661,111320.0,111310.0,0.002]
[1752161965550,1.54254953,111320.0,111310.0,0.002]
[1752161965850,0.2204633,111300.0,111290.0,0.12347808]
[1752161966049,1.14299622,111300.0,111290.0,0.30310748]
[1752161966548,1.44784914,111300.0,111290.0,0.30310748]
[1752161966739,1.14299622,111300.0,111290.0,0.12347808]
[1752161966941,0.83016914,111300.0,111290.0,0.12747808]
[1752161967142,1.44824914,111300.0,111290.0,0.30910748]
[1752161967545,1.44824914,111300.0,111290.0,0.30710748]
[1752161968053,1.44832914,111300.0,111290.0,0.30710748]
[1752161969051,1.44828914,111300.0,111290.0,0.30710748]
[1752161970553,1.14343622,111300.0,111290.0,0.30710748]
[1752161970856,1.14339622,111300.0,111290.0,0.30710748]
[1752161972154,0.52531622,111300.0,111290.0,0.30710748]
[1752161972360,1.14347622,111300.0,111290.0,0.30710748]
[1752161973455,1.14331622,111300.0,111290.0,0.30710748]
[1752161973654,0.8384633,111300.0,111290.0,0.30710748]
[1752161973855,1.14331622,111300.0,111290.0,0.30710748]
[1752161975148,0.8384633,111300.0,111290.0,0.30710748]
[1752161975349,1.14331622,111300.0,111290.0,0.30710748]
[1752161976759,1.14331622,111300.0,111290.0,0.2880594]
[1752161977554,0.52531622,111300.0,111290.0,0.2880594]
[1752161977759,1.14315622,111300.0,111290.0,0.2880594]
[1752161979470,0.2204633,111300.0,111290.0,0.2880594]
[1752161979667,0.1956733,111300.0,111290.0,0.59291232]
[1752161979867,0.52437622,111300.0,111290.0,0.2880594]
[1752161980568,0.2195233,111300.0,111290.0,0.2880594]
[1752161980775,0.52437622,111300.0,111290.0,0.2880594]
[1752161981165,0.2195233,111300.0,111290.0,0.2880594]
[1752161981365,0.52437622,111300.0,111290.0,0.2880594]
[1752161981867,0.2195233,111300.0,111290.0,0.2880594]
[1752161982067,0.52437622,111300.0,111290.0,0.2880594]
[1752161982770,0.1956733,111300.0,111290.0,0.59291232]
[1752161982971,0.1956733,111300.0,111290.0,0.2880594]
[1752161983171,0.1956733,111300.0,111290.0,0.59291232]
[1752161983374,0.61361092,111310.0,111300.0,0.1796133]
[1752161983566,0.308758,111310.0,111300.0,0.2819833]
[1752161983763,0.03935,111310.0,111300.0,0.9005833]
[1752161983962,0.2189472,111310.0,111300.0,0.9005833]
[1752161984464,0.239989,111320.0,111310.0,0.2192672]
[1752161984764,0.239989,111320.0,111310.0,0.29615256]
[1752161985673,0.265839,111320.0,111310.0,0.29615256]
[1752161986068,0.57169192,111320.0,111310.0,0.2821672]